bitfinex/quotes_BTCUSD_20250423
["timestamp","ask_amount","ask_price","bid_price","bid_amount"]
[1745446194478,0.01072179,93268.0,93266.0,4.977e-05]
[1745446194769,0.33204806,93268.0,93266.0,4.977e-05]
[1745446194950,0.10968507,93267.0,93266.0,4.977e-05]
[1745446195677,0.10689014,93267.0,93266.0,4.977e-05]
[1745446197553,0.11089014,93267.0,93266.0,4.977e-05]
[1745446202901,0.11894222,93267.0,93266.0,4.977e-05]
[1745446204158,0.33338033,93267.0,93266.0,4.977e-05]
[1745446207953,0.004,93267.0,93266.0,4.977e-05]
[1745446214484,0.004,93267.0,93264.0,0.01072225]
[1745446214743,0.004,93267.0,93263.0,0.27406743]
[1745446215340,0.001,93267.0,93263.0,0.27406743]
[1745446215660,0.003,93267.0,93264.0,0.22516534]
[1745446215889,0.002,93267.0,93263.0,0.27406743]
[1745446216038,0.01879473,93272.0,93264.0,0.01072225]
[1745446216232,0.001,93267.0,93263.0,0.27406743]
[1745446216630,0.001,93267.0,93264.0,0.01072225]
[1745446216827,0.002,93267.0,93264.0,0.22516565]
[1745446217037,0.01072029,93281.0,93272.0,0.0495]
[1745446217241,0.10689014,93280.0,93272.0,0.0495]
[1745446217439,0.2251384,93276.0,93272.0,0.0495]
[1745446217644,0.2251384,93276.0,93266.0,0.26393861]
[1745446217882,0.22513299,93279.0,93267.0,0.0107219]
[1745446218128,0.33202313,93279.0,93267.0,0.0107219]
[1745446218309,0.01072075,93277.0,93266.0,0.27466063]
[1745446218602,0.01072075,93277.0,93267.0,0.0107219]
[1745446218827,0.01072075,93277.0,93266.0,0.27466063]
[1745446219037,0.001,93267.0,93266.0,0.27466063]
[1745446219248,0.01072087,93276.0,93266.0,0.27466063]
[1745446219654,0.01072087,93276.0,93266.0,0.27566063]
[1745446219883,0.01072087,93276.0,93266.0,0.27466063]
[1745446220565,0.01072087,93276.0,93261.0,0.01072259]
[1745446220566,0.01072133,93272.0,93261.0,0.55445027]
[1745446220780,0.01072144,93271.0,93266.0,0.001]
[1745446221154,0.01072144,93271.0,93261.0,0.56517286]
[1745446221403,0.01072144,93271.0,93261.0,0.55445027]
[1745446221629,0.01072144,93271.0,93250.0,0.0007]
[1745446221630,0.01072328,93255.0,93250.0,0.0007]
[1745446221869,0.32415528,93254.0,93250.0,0.0007]
[1745446222090,0.10689014,93254.0,93252.0,0.00088952]
[1745446222308,0.21447031,93253.0,93252.0,0.00088952]
[1745446222719,0.32136045,93253.0,93252.0,0.00088952]
[1745446224266,0.32236045,93253.0,93252.0,0.00088952]
[1745446224474,0.10766992,93253.0,93252.0,0.00088952]
[1745446225092,0.11066992,93253.0,93252.0,0.00088952]
[1745446225552,0.10966992,93253.0,93252.0,0.00088952]
[1745446226183,0.005,93253.0,93252.0,0.00088952]
[1745446226780,0.007,93253.0,93252.0,0.00088952]
[1745446228902,0.004,93253.0,93252.0,0.00088952]
[1745446230294,0.01418999,93253.0,93252.0,0.26186213]
[1745446230511,0.006,93253.0,93252.0,0.26186213]
[1745446230910,0.002,93253.0,93252.0,0.26186213]
[1745446231354,0.006,93253.0,93252.0,0.26186213]
[1745446231749,0.004,93253.0,93252.0,0.26186213]
[1745446232169,0.006,93253.0,93252.0,0.26186213]
[1745446235867,0.006,93253.0,93252.0,0.60186213]
[1745446238805,0.004,93253.0,93252.0,0.60186213]
[1745446239011,0.004,93253.0,93252.0,0.60286213]
[1745446239416,0.01865657,93271.0,93262.0,0.21444877]
[1745446239618,0.10689014,93270.0,93262.0,0.21444877]
[1745446239821,0.005794,93270.0,93269.0,0.21443352]
[1745446240427,0.00793513,93271.0,93270.0,0.0465]
[1745446240778,0.003,93271.0,93270.0,0.0465]
[1745446240987,0.09623423,93285.0,93271.0,0.22515036]
[1745446241189,0.10689014,93284.0,93276.0,0.2144172]
[1745446241395,0.1122215,93284.0,93276.0,0.2144172]
[1745446242777,0.1142215,93284.0,93276.0,0.2144172]
[1745446242962,0.1142215,93284.0,93278.0,0.21441114]
[1745446243195,0.1142215,93284.0,93277.0,0.2144136]
[1745446243655,0.1142215,93284.0,93278.0,0.21441058]
[1745446244091,0.1142215,93284.0,93277.0,0.2144136]
[1745446244314,0.1162215,93284.0,93277.0,0.2144136]
[1745446244431,0.1192215,93284.0,93277.0,0.2144136]
[1745446245058,0.1222215,93284.0,93278.0,0.21441091]
[1745446245332,0.1162215,93284.0,93278.0,0.21441091]
[1745446245535,0.1122215,93284.0,93278.0,0.21441091]
[1745446245734,0.1202215,93284.0,93278.0,0.21441091]
[1745446246349,0.1202215,93284.0,93279.0,0.21440875]
[1745446246557,0.1202215,93284.0,93278.0,0.21441091]
[1745446247165,0.1202215,93284.0,93275.0,0.21441886]
[1745446247341,0.01072018,93282.0,93272.0,0.21442473]
[1745446247547,0.12294145,93284.0,93273.0,0.21442234]
[1745446247746,0.00540647,93281.0,93275.0,0.21441832]
[1745446247932,0.00540658,93283.0,93274.0,0.21442044]
[1745446248134,0.12061009,93284.0,93274.0,0.21442044]
[1745446248379,0.00540658,93282.0,93274.0,0.21442044]
[1745446248581,0.00539816,93283.0,93275.0,0.21441833]
[1745446248785,0.12261009,93284.0,93275.0,0.21441833]
[1745446248981,0.002,93281.0,93275.0,0.21441833]
[1745446249188,0.002,93281.0,93274.0,0.21442044]
[1745446249400,0.00539853,93280.0,93274.0,0.21442044]
[1745446249599,0.00539853,93280.0,93271.0,0.21442723]
[1745446249808,0.00539853,93280.0,93272.0,0.21442523]
[1745446250023,0.00539853,93280.0,93271.0,0.21442723]
[1745446250243,0.22516613,93265.0,93257.0,0.0472]
[1745446250557,0.10689014,93264.0,93253.0,0.22519233]
[1745446250768,0.11227766,93264.0,93254.0,0.0107234]
[1745446250981,0.01072236,93263.0,93256.0,0.34]
[1745446251184,0.12299991,93264.0,93256.0,0.34]
[1745446251383,0.01072259,93261.0,93256.0,0.34]
[1745446251598,0.12040778,93260.0,93257.0,0.002]
[1745446251811,0.22519099,93255.0,93252.0,0.00088952]
[1745446252049,0.21447031,93253.0,93252.0,0.00088952]
[1745446252301,0.32136045,93253.0,93252.0,0.00088952]
[1745446252512,0.32673107,93253.0,93252.0,0.00088952]
[1745446253381,0.11226076,93253.0,93252.0,0.00088952]
[1745446253805,0.11526076,93253.0,93252.0,0.00088952]
[1745446254217,0.12598427,93253.0,93244.0,0.05123946]
[1745446254443,0.00837062,93253.0,93250.0,0.00011452]
[1745446254658,0.00937062,93253.0,93251.0,0.21447327]
[1745446254932,0.004,93253.0,93250.0,0.00011452]
[1745446255142,0.001,93253.0,93250.0,0.00011452]
[1745446255340,0.01072305,93257.0,93250.0,0.00011452]
[1745446255475,0.005334,93252.0,93250.0,0.00011452]
[1745446255690,0.002,93253.0,93250.0,0.00011452]
[1745446255874,0.005334,93252.0,93250.0,0.00011452]
[1745446256866,0.006334,93252.0,93250.0,0.00011452]
[1745446257441,0.002,93252.0,93250.0,0.00011452]
[1745446259151,0.005334,93251.0,93250.0,0.00011452]
[1745446259692,0.002,93252.0,93250.0,0.00011452]
[1745446259937,0.005334,93251.0,93250.0,0.00011452]
[1745446260636,0.005334,93251.0,93250.0,0.34011452]
[1745446260886,0.001,93252.0,93250.0,0.34011452]
[1745446261094,0.10689014,93257.0,93250.0,0.34011452]
[1745446261295,0.005334,93256.0,93250.0,0.34011452]
[1745446261449,0.001,93251.0,93250.0,0.34011452]
[1745446261784,0.001,93251.0,93250.0,0.00011452]
[1745446261980,0.003,93251.0,93250.0,0.00011452]
[1745446262275,0.002,93251.0,93250.0,0.00011452]
[1745446262688,0.002,93251.0,93250.0,0.09131452]
[1745446262888,0.002,93251.0,93250.0,0.0943169]
[1745446263101,0.003,93251.0,93250.0,0.09131452]
[1745446263323,0.003,93251.0,93250.0,0.09431689]
[1745446263758,0.003,93251.0,93250.0,0.09231452]
[1745446264195,0.003,93251.0,93250.0,0.21374551]
[1745446264422,0.002,93251.0,93250.0,0.21374551]
[1745446264630,0.002,93251.0,93250.0,0.21574551]
[1745446264851,0.22512305,93283.0,93272.0,0.21442659]
[1745446265069,0.10689014,93282.0,93272.0,0.21442659]
[1745446265271,0.11216382,93282.0,93272.0,0.21442659]
[1745446265685,0.122884,93282.0,93273.0,0.21442266]
[1745446265911,0.01072029,93281.0,93272.0,0.21442659]
[1745446266335,0.00527368,93280.0,93272.0,0.21442659]
[1745446266544,0.00527368,93280.0,93271.0,0.34]
[1745446267181,0.00527368,93280.0,93273.0,0.21442259]
[1745446267317,0.00527368,93280.0,93274.0,0.0107211]
[1745446267526,0.11189014,93282.0,93275.0,0.21441891]
[1745446267782,0.00784032,93285.0,93278.0,0.21441283]
[1745446267783,0.003,93281.0,93278.0,0.21441283]
[1745446267990,0.00784032,93285.0,93284.0,0.21439903]
[1745446268168,0.0107188,93294.0,93282.0,0.21440163]
[1745446268338,0.11760905,93293.0,93282.0,0.21440163]
[1745446268543,0.00535323,93292.0,93282.0,0.21440163]
[1745446269013,0.00581654,93292.0,93282.0,0.21440163]
[1745446269815,0.00981654,93292.0,93282.0,0.21440163]
[1745446270182,0.01071914,93291.0,93282.0,0.21440163]
[1745446270382,0.02053557,93292.0,93282.0,0.21440163]
[1745446270590,0.00446331,93292.0,93282.0,0.21440163]
[1745446270810,0.00535323,93291.0,93282.0,0.21440163]
[1745446271207,0.22373678,93291.0,93281.0,0.34]
[1745446271414,0.01135323,93291.0,93281.0,0.55440583]
[1745446271622,0.02207237,93291.0,93281.0,0.55440583]
[1745446272024,0.01607237,93291.0,93281.0,0.55440583]
[1745446272525,0.02207237,93291.0,93281.0,0.55540573]
[1745446273994,0.02207237,93291.0,93281.0,0.341]
[1745446274945,0.01071937,93289.0,93281.0,0.341]
[1745446275171,0.00555305,93288.0,93281.0,0.341]
[1745446275793,0.22556483,93292.0,93281.0,0.34]
[1745446275794,0.01118234,93292.0,93281.0,0.34]
[1745446276034,0.00555305,93287.0,93281.0,0.5544058]
[1745446276179,0.002,93289.0,93281.0,0.5544058]
[1745446276383,0.00554765,93286.0,93281.0,0.5544058]
[1745446276659,0.002,93289.0,93281.0,0.5544058]
[1745446276834,0.002,93289.0,93279.0,0.22512879]
[1745446276980,0.00554765,93288.0,93280.0,0.56512685]
[1745446277431,0.00754765,93288.0,93280.0,0.56512685]
[1745446278121,0.00954765,93288.0,93280.0,0.56512685]
[1745446278558,0.02026714,93288.0,93280.0,0.34]
[1745446278759,0.00954765,93288.0,93280.0,0.34]
[1745446278899,0.01254765,93288.0,93280.0,0.34]
[1745446281005,0.01072029,93281.0,93272.0,0.34]
[1745446281479,0.01072236,93263.0,93251.0,0.0473]
[1745446281708,0.01072317,93256.0,93250.0,0.001]
[1745446282174,0.01072351,93253.0,93250.0,0.001]
[1745446282399,0.0107234,93254.0,93250.0,0.001]
[1745446282865,0.00553847,93253.0,93250.0,0.00111452]
[1745446283579,0.22514994,93272.0,93254.0,0.0107234]
[1745446283808,0.01072236,93263.0,93250.0,0.01183838]
[1745446284039,0.001,93253.0,93250.0,0.00111452]
[1745446284263,0.001,93253.0,93250.0,0.00411452]
[1745446284564,0.1176125,93263.0,93251.0,0.21447452]
[1745446284693,0.01626095,93262.0,93254.0,0.002]
[1745446284906,0.01626095,93262.0,93252.0,0.34]
[1745446285330,0.001,93253.0,93252.0,0.34]
[1745446286382,0.002,93253.0,93252.0,0.34]
[1745446286610,0.001,93253.0,93252.0,0.34]
[1745446286802,0.1176125,93263.0,93252.0,0.55447065]
[1745446287009,0.10689014,93263.0,93254.0,0.21446766]
[1745446287216,0.00542072,93262.0,93254.0,0.21646766]
[1745446287455,0.00542072,93262.0,93254.0,0.002]
[1745446287649,0.00542072,93262.0,93256.0,0.21446128]
[1745446288082,0.00542072,93262.0,93256.0,0.21446331]
[1745446288300,0.00542072,93262.0,93252.0,0.55747065]
[1745446288507,0.0161432,93262.0,93252.0,0.55447065]
[1745446289370,0.00542072,93262.0,93253.0,0.21446807]
[1745446289535,0.00642072,93262.0,93253.0,0.21446807]
[1745446289939,0.00542072,93262.0,93256.0,0.002]
[1745446290414,0.00642072,93262.0,93253.0,0.21446807]
[1745446290753,0.0161432,93262.0,93253.0,0.21646807]
[1745446290956,0.00542072,93262.0,93253.0,0.21446807]
[1745446291207,0.00642072,93262.0,93253.0,0.21446807]
[1745446291459,0.00642072,93262.0,93256.0,0.001]
[1745446291609,0.00642072,93262.0,93253.0,0.21446807]
[1745446292587,0.00542072,93262.0,93253.0,0.21446807]
[1745446292908,0.00642072,93262.0,93253.0,0.21446807]
[1745446293308,0.00642072,93262.0,93255.0,0.21446548]
[1745446294138,0.00542072,93262.0,93255.0,0.21446548]
[1745446294544,0.00642072,93262.0,93255.0,0.21446548]
[1745446295030,0.00642072,93262.0,93255.0,0.21546548]
[1745446295412,0.00642072,93262.0,93255.0,0.21446548]
[1745446295747,0.00642072,93262.0,93256.0,0.21446158]
[1745446295969,0.001,93262.0,93261.0,0.55445191]
[1745446296190,0.1765144,93282.0,93266.0,0.01072202]
[1745446296191,0.39091941,93282.0,93266.0,0.01072202]
[1745446296377,0.10689014,93281.0,93270.0,0.2729764]
[1745446296732,0.01072075,93277.0,93270.0,0.2729764]
[1745446296933,0.01072075,93277.0,93267.0,0.21443811]
[1745446297134,0.00542445,93276.0,93267.0,0.21443811]
[1745446297359,0.00542445,93276.0,93264.0,0.55444485]
[1745446297360,0.01072098,93275.0,93264.0,0.55444485]
[1745446297592,0.01072121,93273.0,93270.0,0.001]
[1745446297797,0.10689014,93272.0,93266.0,0.34]
[1745446298027,0.11231459,93272.0,93270.0,0.001]
[1745446298259,0.10689014,93272.0,93266.0,0.34]
[1745446298461,0.00543342,93271.0,93266.0,0.34]
[1745446298613,0.10689014,93271.0,93266.0,0.34]
[1745446298811,0.01072075,93277.0,93267.0,0.21443811]
[1745446299212,0.00543342,93276.0,93267.0,0.21443811]
[1745446299515,0.00543342,93276.0,93267.0,0.21543811]
[1745446300171,0.00543342,93276.0,93267.0,0.21443811]
[1745446300373,0.00743342,93276.0,93267.0,0.21443811]
[1745446300585,0.00743342,93276.0,93274.0,0.21442046]
[1745446300820,0.09903698,93282.0,93274.0,0.21442046]
[1745446301025,0.10689014,93281.0,93275.0,0.21441789]
[1745446301217,0.002,93276.0,93275.0,0.21441789]
[1745446301858,0.002,93276.0,93274.0,0.21442046]
[1745446302256,0.004,93276.0,93274.0,0.34]
[1745446302713,0.002,93276.0,93274.0,0.34]
[1745446302929,0.01072029,93281.0,93274.0,0.34]
[1745446303149,0.003,93276.0,93274.0,0.34]
[1745446303346,0.003,93276.0,93270.0,0.34]
[1745446303482,0.00543342,93275.0,93270.0,0.34]
[1745446303895,0.002,93276.0,93270.0,0.5544293]
[1745446304126,0.002,93276.0,93270.0,0.34]
[1745446304335,0.004,93276.0,93270.0,0.34]
[1745446304665,0.21438976,93289.0,93272.0,0.34]
[1745446304872,0.003,93275.0,93272.0,0.34]
[1745446305079,0.003,93275.0,93272.0,0.55442454]
[1745446305867,0.002,93275.0,93274.0,0.34]
[1745446306065,0.001,93276.0,93271.0,0.34]
[1745446306325,0.01072098,93275.0,93271.0,0.34]
[1745446306552,0.00476206,93275.0,93271.0,0.34]
[1745446306752,0.00476206,93275.0,93271.0,0.55442675]
[1745446306954,0.001,93276.0,93271.0,0.55442675]
[1745446307159,0.004,93275.0,93271.0,0.55442675]
[1745446307542,0.005,93275.0,93271.0,0.55442675]
[1745446307743,0.001,93275.0,93271.0,0.55442675]
[1745446307967,0.004,93275.0,93273.0,0.34]
[1745446308386,0.003,93275.0,93273.0,0.33977978]
[1745446308885,0.004,93275.0,93271.0,0.21442675]
[1745446309316,0.001,93275.0,93267.0,0.21443625]
[1745446309535,0.001,93275.0,93264.0,0.21444297]
[1745446309722,0.00476206,93274.0,93264.0,0.21444297]
[1745446310019,0.00476206,93274.0,93266.0,0.21443983]
[1745446310370,0.00476206,93274.0,93267.0,0.34]
[1745446310582,0.00476206,93274.0,93267.0,0.55443612]
[1745446310785,0.00476206,93274.0,93270.0,0.34]
[1745446310989,0.01072041,93280.0,93270.0,0.55442979]
[1745446311212,0.001,93274.0,93270.0,0.55442979]
[1745446311408,0.001,93274.0,93270.0,0.34]
[1745446311730,0.10689014,93273.0,93270.0,0.34]
[1745446311998,0.01072282,93259.0,93250.0,0.00011452]
[1745446312201,0.10689014,93259.0,93250.0,0.00011452]
[1745446312406,0.00476303,93258.0,93250.0,0.00011452]
[1745446312801,0.01072305,93257.0,93250.0,0.00011452]
[1745446313138,0.00476303,93256.0,93250.0,0.00011452]
[1745446313349,0.00416765,93255.0,93250.0,0.00011452]
[1745446313575,0.01072294,93258.0,93250.0,0.00011452]
[1745446313748,0.00416765,93257.0,93250.0,0.00011452]
[1745446313978,0.00416765,93257.0,93250.0,0.00111452]
[1745446314399,0.00416765,93257.0,93250.0,0.00011452]
[1745446314599,0.00416765,93257.0,93250.0,0.00211452]
[1745446315001,0.00416765,93257.0,93250.0,0.00111452]
[1745446315197,0.00416765,93257.0,93250.0,0.34111452]
[1745446315409,0.01072294,93258.0,93250.0,0.34111452]
[1745446315617,0.00343106,93257.0,93250.0,0.34111452]
[1745446315792,0.00343106,93257.0,93250.0,0.34011452]
[1745446315972,0.001,93257.0,93250.0,0.34011452]
[1745446316172,0.00343106,93256.0,93250.0,0.34011452]
[1745446316419,0.00343106,93256.0,93250.0,0.00111452]
[1745446317448,0.001,93256.0,93250.0,0.00111452]
[1745446317655,0.00343106,93255.0,93250.0,0.00111452]
[1745446317861,0.00343106,93255.0,93250.0,0.00011452]
[1745446318058,0.00343106,93255.0,93250.0,0.00111452]
[1745446318905,0.00343106,93255.0,93250.0,0.34111452]
[1745446319115,0.001,93255.0,93250.0,0.34111452]
[1745446319380,0.00342662,93254.0,93250.0,0.34011452]
[1745446319544,0.001,93255.0,93250.0,0.34011452]
[1745446319700,0.001,93255.0,93250.0,0.34111452]
[1745446319922,0.001,93255.0,93250.0,0.00111452]
[1745446319923,0.00342662,93254.0,93250.0,0.00111452]
[1745446320134,0.001,93255.0,93250.0,0.00111452]
[1745446320335,0.00342662,93254.0,93250.0,0.34111452]
[1745446320549,0.001,93255.0,93250.0,0.34111452]
[1745446320748,0.00342662,93254.0,93250.0,0.34111452]
[1745446320954,0.11761296,93259.0,93250.0,0.34111452]
[1745446321161,0.00342662,93258.0,93250.0,0.34111452]
[1745446321983,0.001,93254.0,93250.0,0.34111452]
[1745446322571,0.3401938,93259.0,93250.0,0.34011452]
[1745446322776,0.22518325,93258.0,93250.0,0.34111452]
[1745446322909,0.22518325,93258.0,93250.0,0.00011452]
[1745446322910,0.01072305,93257.0,93250.0,0.00011452]
[1745446323111,0.21447261,93252.0,93250.0,0.00011452]
[1745446323358,0.10968507,93251.0,93250.0,0.00111452]
[1745446323542,0.11309089,93251.0,93250.0,0.00011452]
[1745446323717,0.11029596,93251.0,93250.0,0.00011452]
[1745446323915,0.11029596,93251.0,93250.0,0.00111452]
[1745446324606,0.11029596,93251.0,93250.0,0.00011452]
[1745446325758,0.11129596,93251.0,93250.0,0.00011452]
[1745446325958,0.11329596,93251.0,93250.0,0.00011452]
[1745446326366,0.32877087,93251.0,93250.0,0.00011452]
[1745446326563,0.11429596,93251.0,93250.0,0.00011452]
[1745446327366,0.32877087,93251.0,93250.0,0.00011452]
[1745446327568,0.11429596,93251.0,93250.0,0.00011452]
[1745446329854,0.32877087,93251.0,93250.0,0.00011452]
[1745446330076,0.11429596,93251.0,93250.0,0.00011452]
[1745446330436,0.11429596,93251.0,93241.0,0.21449622]
[1745446330657,0.01072397,93249.0,93239.0,0.27432536]
[1745446331027,0.21452552,93229.0,93220.0,0.0461]
[1745446331232,0.10689014,93229.0,93220.0,0.0461]
[1745446331412,0.11021128,93229.0,93220.0,0.0461]
[1745446332571,0.11121128,93229.0,93220.0,0.0461]
[1745446332982,0.11021128,93229.0,93220.0,0.05682731]
[1745446333203,0.11021128,93229.0,93221.0,0.01072719]
[1745446333459,0.00432114,93229.0,93228.0,0.23895302]
[1745446333659,0.00432114,93229.0,93228.0,0.0705252]
[1745446333857,0.001,93229.0,93228.0,0.33005619]
[1745446334083,0.001,93229.0,93228.0,0.32905302]
[1745446334282,0.001,93229.0,93228.0,0.1145252]
[1745446334722,0.0041918,93229.0,93228.0,0.0224252]
[1745446334952,0.10789014,93229.0,93228.0,0.0224252]
[1745446335124,0.11108194,93229.0,93228.0,0.0224252]
[1745446335713,0.15748194,93229.0,93228.0,0.0224252]
[1745446336492,0.15748194,93229.0,93217.0,0.0004254]
[1745446336493,0.01072731,93220.0,93217.0,0.0004254]
[1745446336693,0.32143867,93219.0,93217.0,0.0004254]
[1745446336910,0.32460615,93219.0,93217.0,0.0004254]
[1745446337774,0.00279493,93218.0,93217.0,0.0004254]
[1745446337974,0.21387955,93218.0,93217.0,0.0004254]
[1745446338199,0.15922237,93218.0,93217.0,0.0004254]
[1745446338796,0.25022237,93218.0,93217.0,0.0024254]
[1745446339120,0.24742744,93218.0,93217.0,0.0004254]
[1745446339678,0.25242744,93218.0,93217.0,0.0004254]
[1745446339884,0.25642744,93218.0,93217.0,0.0004254]
[1745446342038,0.25742744,93218.0,93217.0,0.0004254]
[1745446342658,0.12002744,93218.0,93217.0,0.0004254]
[1745446345514,0.11689014,93218.0,93217.0,0.0004254]
[1745446347457,0.01,93218.0,93217.0,0.0004254]
[1745446347665,0.01,93218.0,93217.0,0.26047853]
[1745446348281,0.005,93218.0,93217.0,0.26047853]
[1745446348489,0.005,93218.0,93217.0,0.0459254]
[1745446348695,0.002,93218.0,93217.0,0.0459254]
[1745446348904,0.002,93218.0,93217.0,0.0024254]
[1745446349111,0.10889014,93218.0,93217.0,0.0024254]
[1745446349314,0.10889014,93218.0,93217.0,0.0004254]
[1745446349534,0.10889014,93218.0,93217.0,0.0024254]
[1745446349720,0.10889014,93218.0,93217.0,0.0004254]
[1745446350021,0.10789014,93218.0,93217.0,0.0004254]
[1745446350373,0.10889014,93218.0,93217.0,0.0014254]
[1745446350805,0.10689014,93218.0,93217.0,0.0004254]
[1745446351219,0.11168507,93218.0,93217.0,0.0004254]
[1745446351736,0.10889014,93218.0,93217.0,0.0004254]
[1745446353246,0.002,93218.0,93217.0,0.0004254]
[1745446353417,0.002,93218.0,93217.0,0.0466254]
[1745446353618,0.002,93218.0,93217.0,0.0004254]
[1745446355730,0.002,93218.0,93217.0,0.0502254]
[1745446356094,0.002,93218.0,93217.0,0.0004254]
[1745446360672,0.10889014,93218.0,93217.0,0.0004254]
[1745446360874,0.11168507,93218.0,93217.0,0.0004254]
[1745446362703,0.10889014,93218.0,93217.0,0.0004254]
[1745446366948,0.002,93218.0,93217.0,0.0984254]
[1745446369565,0.002,93218.0,93217.0,0.4569696]
[1745446369778,0.00744709,93239.0,93238.0,0.34]
[1745446370003,0.00993012,93254.0,93241.0,0.01072489]
[1745446370213,0.00993012,93254.0,93253.0,0.21447031]
[1745446370424,0.00993012,93254.0,93253.0,0.60357031]
[1745446370635,0.05019617,93268.0,93265.0,0.21444271]
[1745446371314,0.05019617,93268.0,93259.0,0.21445602]
[1745446371525,0.00131496,93266.0,93260.0,0.21445205]
[1745446371730,0.00328717,93265.0,93260.0,0.21445205]
[1745446371948,0.00131496,93266.0,93260.0,0.21445205]
[1745446372403,0.00431496,93266.0,93265.0,0.001]
[1745446372822,0.00131496,93266.0,93260.0,0.21445205]
[1745446373028,0.01603698,93266.0,93260.0,0.001]
[1745446373236,0.00531496,93266.0,93260.0,0.001]
[1745446373805,0.00331496,93266.0,93260.0,0.001]
[1745446374029,0.00431496,93266.0,93260.0,0.001]
[1745446374231,0.01303698,93266.0,93257.0,0.35072305]
[1745446374457,0.21446083,93258.0,93254.0,0.34]
[1745446374772,0.01072259,93261.0,93254.0,0.34]
[1745446375390,0.01072259,93261.0,93257.0,0.001]
[1745446375391,0.22518175,93258.0,93257.0,0.001]
[1745446375527,0.33207189,93258.0,93257.0,0.001]
[1745446376457,0.01072478,93242.0,93235.0,0.3891]
[1745446376657,0.01072489,93241.0,93235.0,0.3891]
[1745446376856,0.01072535,93237.0,93224.0,0.34]
[1745446377067,0.21451659,93233.0,93224.0,0.3891]
[1745446377262,0.0107257,93234.0,93224.0,0.39982685]
[1745446377523,0.01072581,93233.0,93224.0,0.39982685]
[1745446377741,0.01072639,93228.0,93222.0,0.0489]
[1745446378160,0.01072627,93229.0,93222.0,0.05976647]
[1745446378343,0.01072581,93233.0,93224.0,0.01072685]
[1745446379283,0.0107257,93234.0,93224.0,0.22826344]
[1745446379486,0.0107257,93234.0,93227.0,0.0107265]
[1745446379750,0.01072581,93233.0,93225.0,0.01072673]
[1745446379979,0.01072581,93233.0,93226.0,0.01072662]
[1745446380186,0.22523633,93236.0,93228.0,0.01072639]
[1745446380391,0.10689014,93240.0,93229.0,0.21452552]
[1745446380549,0.001,93234.0,93231.0,0.22524696]
[1745446380925,0.001,93234.0,93229.0,0.01072627]
[1745446381131,0.001,93234.0,93229.0,0.35072627]
[1745446381327,0.001,93234.0,93231.0,0.34]
[1745446381546,0.001,93234.0,93232.0,0.21451862]
[1745446381760,0.10689014,93240.0,93232.0,0.22524455]
[1745446381960,0.003251,93239.0,93232.0,0.22524455]
[1745446382162,0.001,93236.0,93232.0,0.21451862]
[1745446382599,0.001,93236.0,93229.0,0.341]
[1745446382828,0.01072593,93232.0,93229.0,0.34]
[1745446383047,0.01072547,93236.0,93232.0,0.001]
[1745446383266,0.21451631,93233.0,93232.0,0.001]
[1745446383497,0.32140645,93233.0,93232.0,0.001]
[1745446383749,0.32462197,93233.0,93232.0,0.001]
[1745446384000,0.2252634,93225.0,93222.0,0.00013939]
[1745446384207,0.10689014,93224.0,93222.0,0.00013939]
[1745446384420,0.21775485,93223.0,93222.0,0.00013939]
[1745446384634,0.00321552,93223.0,93222.0,0.00013939]
[1745446385709,0.00421552,93223.0,93222.0,0.55868464]
[1745446385929,0.002,93223.0,93222.0,0.60558102]
[1745446386155,0.01072443,93245.0,93222.0,0.60458102]
[1745446386375,0.0031892,93244.0,93236.0,0.21450888]
[1745446387261,0.1176148,93243.0,93232.0,0.2145186]
[1745446387427,0.1176148,93243.0,93232.0,0.01072593]
[1745446387428,0.10689014,93243.0,93232.0,0.01072593]
[1745446387647,0.0031892,93242.0,93232.0,0.21451862]
[1745446387844,0.10689014,93241.0,93232.0,0.21451862]
[1745446388046,0.00322679,93240.0,93232.0,0.21451862]
[1745446388418,0.10689014,93239.0,93232.0,0.21451862]
[1745446388624,0.1101152,93239.0,93236.0,0.001]
[1745446388818,0.1101152,93239.0,93232.0,0.21451862]
[1745446389149,0.1101152,93239.0,93234.0,0.21451363]
[1745446389763,0.1101152,93239.0,93236.0,0.002]
[1745446390048,0.1111152,93239.0,93236.0,0.001]
[1745446390268,0.00422506,93239.0,93237.0,0.21450488]
[1745446390497,0.001,93239.0,93237.0,0.21450488]
[1745446390718,0.001,93239.0,93236.0,0.001]
[1745446391156,0.01072455,93244.0,93234.0,0.21551363]
[1745446391349,0.001,93239.0,93234.0,0.21651363]
[1745446391567,0.001,93239.0,93234.0,0.21551363]
[1745446391812,0.01072466,93243.0,93236.0,0.001]
[1745446392028,0.01072466,93243.0,93234.0,0.21451363]
[1745446392244,0.001,93239.0,93236.0,0.001]
[1745446392592,0.01072466,93243.0,93234.0,0.21451363]
[1745446392802,0.001,93239.0,93234.0,0.001]
[1745446393005,0.001,93239.0,93236.0,0.001]
[1745446393208,0.21450481,93238.0,93236.0,0.001]
[1745446393416,0.21775863,93238.0,93236.0,0.001]
[1745446393589,0.22523408,93237.0,93234.0,0.001]
[1745446394016,0.00325382,93236.0,93234.0,0.001]
[1745446394220,0.11861526,93239.0,93234.0,0.001]
[1745446394431,0.00325382,93235.0,93231.0,0.34]
[1745446394640,0.01072547,93236.0,93231.0,0.34]
[1745446394862,0.00325382,93234.0,93231.0,0.34]
[1745446395121,0.01072535,93237.0,93228.0,0.34]
[1745446395335,0.00325382,93233.0,93228.0,0.34]
[1745446395530,0.01072547,93236.0,93234.0,0.001]
[1745446395978,0.01072547,93236.0,93228.0,0.34]
[1745446395979,0.01072604,93231.0,93228.0,0.34]
[1745446396178,0.0107265,93227.0,93222.0,0.00013939]
[1745446396433,0.21452773,93229.0,93222.0,0.00013939]
[1745446396640,0.10689014,93230.0,93222.0,0.00013939]
[1745446396864,0.10689014,93230.0,93224.0,0.34]
[1745446397038,0.10689014,93230.0,93226.0,0.34]
[1745446397398,0.10689014,93230.0,93228.0,0.002]
[1745446397675,0.01072547,93236.0,93228.0,0.342]
[1745446397849,0.01072581,93233.0,93226.0,0.21453156]
[1745446398245,0.01072489,93241.0,93230.0,0.34]
[1745446398456,0.33211682,93240.0,93230.0,0.6129764]
[1745446398674,0.01072535,93237.0,93230.0,0.6129764]
[1745446398853,0.01072558,93235.0,93230.0,0.34]
[1745446399174,0.001,93233.0,93230.0,0.34]
[1745446399393,0.00095,93233.0,93228.0,0.34]